bitfinex-derivatives/quotes_SOLF0:USTF0_20260210
["timestamp","ask_amount","ask_price","bid_price","bid_amount"]
[1770741205993,4.09255742,84.409,84.35,3.93063279]
[1770741206598,10.669,84.407,84.355,10.6755]
[1770741206898,10.669,84.407,84.355,14.60613279]
[1770741207706,10.669,84.407,84.362,10.6745]
[1770741208503,4.09255742,84.424,84.37,3.93063279]
[1770741209500,4.09255742,84.424,84.34,9.63186876]
[1770741209501,4.09255742,84.408,84.336,3.93063279]
[1770741210201,10.6705,84.395,84.336,3.93063279]
[1770741210507,4.09255742,84.408,84.341,3.93063279]
[1770741210805,4.09255742,84.408,84.367,10.674]
[1770741211703,4.09255742,84.408,84.36,10.6749]
[1770741211901,4.09255742,84.408,84.35,3.93063279]
[1770741212103,4.09255742,84.408,84.325,95.38]
[1770741212300,4.09255742,84.408,84.334,3.93063279]
[1770741212701,10.6707,84.394,84.35,10.6761]
[1770741212903,4.09255742,84.408,84.334,3.93063279]
[1770741213500,10.6698,84.401,84.363,10.6744]
[1770741213705,4.09255742,84.423,84.358,3.93063279]
[1770741214310,4.09255742,84.423,84.34,9.63186876]
[1770741214311,4.09255742,84.423,84.341,3.93063279]
[1770741214509,4.09255742,84.438,84.361,3.93063279]
[1770741215611,10.6673,84.421,84.375,3.93063279]
[1770741216606,4.09255742,84.438,84.375,3.93063279]
[1770741217916,4.09255742,84.438,84.361,3.93063279]
[1770741218306,10.6681,84.414,84.372,10.6734]
[1770741218909,14.76065742,84.414,84.372,10.6734]
[1770741219115,4.09255742,84.413,84.372,10.6734]
[1770741219614,10.6685,84.411,84.364,10.6743]
[1770741220008,4.09255742,84.41,84.35,9.63186876]
[1770741220209,10.6715,84.388,84.347,10.6764]
[1770741220414,4.09255742,84.394,84.347,10.6764]
[1770741221610,4.09255742,84.386,84.328,3.93063279]
[1770741222618,14.76525742,84.378,84.33,10.6787]
[1770741222908,4.09255742,84.377,84.33,10.6787]
[1770741223511,10.6731,84.374,84.33,10.6787]
[1770741224914,4.09255742,84.395,84.338,3.93063279]
[1770741226015,4.09255742,84.382,84.321,3.93063279]
[1770741227823,10.6731,84.375,84.322,10.6796]
[1770741228231,4.09255742,84.382,84.322,10.6796]
[1770741229819,10.6739,84.368,84.322,10.6796]
[1770741230832,4.09255742,84.382,84.323,4.03309062]
[1770741231031,4.09255742,84.382,84.238,166.2951]
[1770741231032,3.84617217,84.369,84.308,4.03309062]
[1770741231339,3.84617217,84.369,84.282,14.56520576]
[1770741231340,3.84617217,84.369,84.283,4.03309062]
[1770741231833,10.676,84.352,84.306,4.03309062]
[1770741232037,3.84617217,84.369,84.306,4.03309062]
[1770741232834,3.84617217,84.369,84.309,10.6813]
[1770741233033,3.84617217,84.369,84.306,4.03309062]
[1770741233540,3.84617217,84.355,84.306,4.03309062]
[1770741234729,3.84617217,84.353,84.307,10.6815]
[1770741235833,3.84617217,84.348,84.3,10.6824]
[1770741236035,3.84617217,84.348,84.281,4.03309062]
[1770741237032,14.52277217,84.347,84.281,4.03309062]
[1770741238633,3.84617217,84.347,84.281,4.03309062]
[1770741239036,10.6761,84.351,84.308,4.03309062]
[1770741239238,3.84617217,84.362,84.308,4.03309062]
[1770741240936,10.6749,84.361,84.317,10.6803]
[1770741241135,3.84617217,84.379,84.318,4.03309062]
[1770741241439,10.6747,84.362,84.318,4.03309062]
[1770741241634,13.47804093,84.38,84.318,4.03309062]
[1770741241838,3.84617217,84.379,84.318,4.03309062]
[1770741242837,14.51957217,84.373,84.33,10.6787]
[1770741243241,3.84617217,84.372,84.318,4.03309062]
[1770741243440,3.84617217,84.361,84.314,10.6806]
[1770741243737,3.84617217,84.359,84.277,4.03309062]
[1770741244437,3.84617217,84.335,84.26,4.03309062]
[1770741244840,3.60339577,84.32,84.271,4.03309062]
[1770741245733,3.60339577,84.32,84.283,10.6845]
[1770741246342,3.60339577,84.32,84.275,10.6856]
[1770741246844,10.6794,84.325,84.275,10.6856]
[1770741247142,10.6794,84.325,84.282,10.6847]
[1770741248238,10.6794,84.325,84.25,9.65206429]
[1770741248239,3.84617217,84.324,84.256,4.03309062]
[1770741248543,3.84617217,84.321,84.273,10.6859]
[1770741249336,3.84617217,84.353,84.271,4.03309062]
[1770741249732,3.84617217,84.342,84.292,10.6835]
[1770741250242,3.84617217,84.342,84.27,9.65206429]
[1770741250243,3.84617217,84.342,84.299,10.6825]
[1770741250833,3.84617217,84.342,84.286,4.03309062]
[1770741251446,3.84617217,84.328,84.279,10.685]
[1770741252738,3.84617217,84.326,84.269,10.6863]
[1770741252938,3.84617217,84.326,84.231,4.03309062]
[1770741253339,94.64,84.339,84.23,9.65206429]
[1770741253340,3.84617217,84.319,84.242,4.03309062]
[1770741253944,3.84617217,84.305,84.242,4.03309062]
[1770741254141,13.49823646,84.32,84.242,4.03309062]
[1770741254341,3.84617217,84.319,84.242,4.03309062]
[1770741254542,3.84617217,84.307,84.256,10.688]
[1770741255349,3.84617217,84.319,84.266,4.03309062]
[1770741256850,3.84617217,84.317,84.266,4.03309062]
[1770741257041,3.84617217,84.317,84.231,4.03309062]
[1770741257542,3.84617217,84.306,84.245,10.6894]
[1770741258844,3.84617217,84.296,84.245,10.6894]
[1770741259845,3.84617217,84.296,84.252,10.6885]
[1770741260345,3.84617217,84.296,84.245,4.03309062]
[1770741260346,3.94779752,84.294,84.245,4.03309062]
[1770741261451,14.62919752,84.309,84.253,3.80803327]
[1770741261651,3.79417963,84.308,84.253,3.80803327]
[1770741262646,3.79417963,84.308,84.26,14.52917487]
[1770741262848,3.79417963,84.308,84.261,3.84167487]
[1770741263441,3.79417963,84.306,84.225,3.84167487]
[1770741263945,3.79417963,84.306,84.25,3.84167487]
[1770741264755,3.79417963,84.306,84.261,10.6874]
[1770741265842,94.68,84.335,84.221,94.68]
[1770741265843,10.6805,84.317,84.262,3.84167487]
[1770741266050,3.79417963,84.316,84.262,3.84167487]
[1770741266753,3.79417963,84.312,84.262,14.52897487]
[1770741267349,3.79417963,84.312,84.262,10.6873]
[1770741268248,3.79417963,84.301,84.233,3.84167487]
[1770741269148,3.79417963,84.301,84.22,9.65892098]
[1770741269149,3.79417963,84.301,84.265,10.6868]
[1770741269450,10.6814,84.309,84.265,10.6868]
[1770741269850,3.79417963,84.315,84.266,3.84167487]
[1770741270153,3.79417963,84.329,84.266,3.84167487]
[1770741270549,3.79417963,84.346,84.266,3.84167487]
[1770741271454,3.79417963,84.346,84.312,10.6809]
[1770741271644,3.79417963,84.346,84.267,3.84167487]
[1770741272654,14.47097963,84.346,84.294,3.84167487]
[1770741272855,3.79417963,84.345,84.271,3.84167487]
[1770741273354,3.79417963,84.329,84.289,10.6838]
[1770741273548,3.79417963,84.329,84.271,3.84167487]
[1770741273951,3.79417963,84.327,84.271,3.84167487]
[1770741274257,3.79417963,84.327,84.257,3.84167487]
[1770741274755,10.6805,84.316,84.273,10.6858]
[1770741275162,130.28,84.346,84.257,3.84167487]
[1770741275163,3.79417963,84.315,84.257,3.84167487]
[1770741275552,3.79417963,84.3,84.236,3.84167487]
[1770741276748,3.79417963,84.3,84.259,10.6876]
[1770741280163,10.6829,84.297,84.252,10.6885]
[1770741280362,3.79417963,84.296,84.252,10.6885]
[1770741280563,3.79417963,84.296,84.231,3.84167487]
[1770741280759,14.47767963,84.293,84.231,3.84167487]
[1770741280955,3.60623187,84.29,84.241,3.84167487]
[1770741281659,3.79417963,84.293,84.249,10.6888]
[1770741281860,3.79417963,84.307,84.261,3.84167487]
[1770741282669,3.60623187,84.3,84.261,3.84167487]
[1770741283059,10.6819,84.305,84.261,3.84167487]
[1770741283367,3.79417963,84.307,84.263,10.6871]
[1770741283764,3.60623187,84.32,84.272,3.84167487]
[1770741284868,3.60623187,84.32,84.275,10.6856]
[1770741285669,3.60623187,84.31,84.272,3.84167487]
[1770741286264,10.6804,84.317,84.274,10.6858]
[1770741286561,7.4004115,84.32,84.274,10.6858]
[1770741286766,3.60623187,84.33,84.281,3.84167487]
[1770741287269,3.60623187,84.33,84.286,10.6842]
[1770741287658,3.60623187,84.33,84.287,3.84167487]
[1770741287862,10.6788,84.329,84.287,3.84167487]
[1770741288266,3.60623187,84.32,84.287,3.84167487]
[1770741288862,3.60623187,84.33,84.287,3.84167487]
[1770741289466,10.6776,84.339,84.291,3.84167487]
[1770741289666,3.60623187,84.34,84.291,3.84167487]
[1770741289861,3.79417963,84.349,84.291,3.84167487]
[1770741290564,14.47047963,84.349,84.301,3.94969398]
[1770741290868,3.60623187,84.35,84.301,3.94969398]
[1770741291276,3.60623187,84.36,84.301,3.94969398]
[1770741291477,3.87878722,84.359,84.301,3.94969398]
[1770741291661,3.60623187,84.35,84.301,3.94969398]
[1770741291863,3.60623187,84.35,84.312,10.6808]
[1770741292373,3.87878722,84.359,84.314,14.63029398]
[1770741292873,3.60623187,84.37,84.315,3.94969398]
[1770741293073,3.87878722,84.374,84.323,3.94969398]
[1770741293377,10.6714,84.388,84.331,3.94969398]
[1770741293777,14.55018722,84.388,84.331,3.94969398]
[1770741293964,3.60623187,84.4,84.35,7.55592585]
[1770741294165,3.60623187,84.39,84.34,3.60623187]
[1770741294368,94.66,84.412,84.291,21.3672]
[1770741294369,3.87878722,84.379,84.336,3.94969398]
[1770741295670,3.60623187,84.37,84.336,3.94969398]
[1770741296273,3.87878722,84.379,84.336,3.94969398]
[1770741296474,3.87878722,84.379,84.285,14.56520576]
[1770741296475,3.60623187,84.36,84.31,3.60623187]
[1770741296776,3.60623187,84.36,84.306,3.94969398]
[1770741297377,3.60623187,84.36,84.268,21.3729]
[1770741297378,3.60623187,84.36,84.311,3.94969398]
[1770741297684,3.60623187,84.36,84.318,10.6802]
[1770741298272,14.28123187,84.36,84.311,3.94969398]
[1770741298476,3.60623187,84.36,84.311,3.94969398]
[1770741298875,3.60623187,84.37,84.328,10.6788]
[1770741299475,3.60623187,84.37,84.337,10.6777]
[1770741299777,3.87878722,84.398,84.35,3.60623187]
[1770741300279,3.87878722,84.395,84.341,3.94969398]
[1770741301066,10.6694,84.404,84.349,3.94969398]
[1770741301474,3.87878722,84.403,84.349,3.94969398]
[1770741301676,3.87878722,84.403,84.361,10.6747]
[1770741302876,3.87878722,84.403,84.349,3.94969398]
[1770741303080,3.87878722,84.403,84.354,10.6756]
[1770741303381,3.87878722,84.403,84.349,3.94969398]
[1770741303575,3.87878722,84.425,84.362,3.94969398]
[1770741304080,3.87878722,84.415,84.368,10.6738]
[1770741304476,10.6682,84.413,84.368,10.6738]
[1770741304676,10.6682,84.413,84.324,94.62]
[1770741304677,3.87878722,84.399,84.311,3.94969398]
[1770741305078,3.87878722,84.38,84.311,3.94969398]
[1770741305274,3.87878722,84.38,84.336,10.6779]
[1770741305474,3.87878722,84.38,84.325,3.94969398]
[1770741305774,3.87878722,84.377,84.325,3.94969398]
[1770741306276,10.673,84.375,84.328,10.6788]
[1770741307083,3.87878722,84.372,84.325,3.94969398]
[1770741307277,3.87878722,84.372,84.319,10.6801]
[1770741307479,3.87878722,84.372,84.31,3.94969398]
[1770741308780,3.87878722,84.372,84.324,10.6793]
[1770741308984,3.87878722,84.372,84.325,3.94969398]
[1770741309776,10.6718,84.384,84.328,3.94969398]
[1770741309975,3.87878722,84.39,84.328,3.94969398]
[1770741310181,3.87878722,84.405,84.328,3.94969398]
[1770741310886,10.6694,84.404,84.35,3.94969398]
[1770741311582,10.6694,84.404,84.357,3.94969398]
[1770741311980,3.87878722,84.405,84.367,10.6739]
[1770741312178,10.668,84.415,84.367,10.6739]
[1770741313085,3.87878722,84.432,84.373,3.94969398]
[1770741313281,3.87878722,84.447,84.373,3.94969398]
[1770741313684,3.87878722,84.447,84.401,3.94969398]
[1770741314084,10.6632,84.453,84.401,3.94969398]
[1770741314289,3.87878722,84.462,84.414,10.668]
[1770741315190,3.87878722,84.462,84.42,10.6672]
[1770741315389,3.87878722,84.462,84.415,3.94969398]
[1770741316290,3.87878722,84.462,84.416,10.6678]
[1770741316786,10.6611,84.469,84.417,3.94969398]
[1770741317084,14.54018722,84.467,84.417,3.94969398]
[1770741318580,10.6623,84.46,84.417,3.94969398]
[1770741318784,3.87878722,84.459,84.381,3.94969398]
[1770741319487,3.87878722,84.443,84.381,3.94969398]
[1770741319691,3.87878722,84.439,84.381,3.94969398]
[1770741319890,3.87878722,84.439,84.36,104.21513964]
[1770741319891,3.87878722,84.439,84.361,3.81341478]
[1770741320691,9.63513964,84.44,84.373,10.6732]
[1770741320692,3.91559349,84.422,84.373,10.6732]
[1770741321394,10.6675,84.419,84.373,10.6732]
[1770741322195,4.10649902,84.458,84.382,4.0767553]
[1770741322789,10.6636,84.449,84.399,10.6699]
[1770741322989,4.10649902,84.458,84.399,10.6699]
[1770741323683,10.6627,84.457,84.406,10.669]
[1770741323896,4.10649902,84.475,84.407,4.0767553]
[1770741324592,4.10649902,84.475,84.383,94.56]
[1770741324593,4.10649902,84.493,84.425,4.0767553]
[1770741324790,4.10649902,84.493,84.391,4.0767553]
[1770741324994,4.10649902,84.469,84.413,10.6681]
[1770741325592,37.6607568,84.508,84.384,94.56]
[1770741325593,4.10649902,84.486,84.422,4.0767553]
[1770741326390,4.10649902,84.486,84.4,9.62342711]
[1770741326391,4.10649902,84.476,84.401,4.0767553]
[1770741326893,10.6621,84.462,84.414,10.668]
[1770741327098,4.10649902,84.461,84.401,4.0767553]
[1770741327705,4.10649902,84.461,84.404,10.6692]
[1770741327902,4.10649902,84.461,84.405,4.0767553]
[1770741328400,4.10649902,84.484,84.407,4.0767553]
[1770741328997,4.10649902,84.484,84.411,4.0767553]
[1770741329201,4.10649902,84.484,84.436,10.6651]
[1770741329603,4.10649902,84.484,84.427,4.0767553]
[1770741329904,4.10649902,84.482,84.428,10.6662]
[1770741330089,4.10649902,84.482,84.429,4.0767553]
[1770741331200,4.10649902,84.482,84.431,10.6658]
[1770741331408,4.10649902,84.482,84.389,94.54]
[1770741331409,4.10649902,84.519,84.432,4.0767553]
[1770741331905,10.6568,84.504,84.45,4.0767553]
[1770741332094,4.10649902,84.503,84.431,4.0767553]
[1770741332291,98.62649902,84.52,84.431,4.0767553]
[1770741332497,4.10649902,84.519,84.431,4.0767553]
[1770741333797,10.6567,84.505,84.456,10.6627]
[1770741334004,4.10649902,84.519,84.453,4.0767553]
[1770741334400,10.6576,84.498,84.454,10.6629]
[1770741335195,10.6563,84.508,84.46,10.6622]
[1770741335600,4.10649902,84.519,84.461,4.0767553]
[1770741335999,4.10649902,84.519,84.473,10.6605]
[1770741337405,4.10649902,84.519,84.481,10.6596]
[1770741338606,4.10649902,84.519,84.473,10.6605]
[1770741339006,4.10649902,84.519,84.461,4.0767553]
[1770741339305,4.10649902,84.509,84.461,4.0767553]
[1770741339502,4.10649902,84.542,84.461,4.0767553]
[1770741339900,4.10649902,84.542,84.433,94.5]
[1770741339901,4.10649902,84.558,84.492,4.0767553]
[1770741340208,4.10649902,84.558,84.46,9.62342711]
[1770741340209,4.10649902,84.539,84.461,4.0767553]
[1770741340409,4.10649902,84.554,84.488,4.0767553]
[1770741341214,4.10649902,84.544,84.488,4.0767553]
[1770741341507,4.10649902,84.539,84.461,4.0767553]
[1770741341704,10.6544,84.522,84.466,10.6615]
[1770741342103,9.62342711,84.54,84.461,4.0767553]
[1770741342104,4.10649902,84.519,84.461,4.0767553]
[1770741342304,14.76229902,84.511,84.461,4.0767553]
[1770741342612,4.10649902,84.511,84.461,4.0767553]
[1770741343707,4.10649902,84.509,84.454,10.663]
[1770741343910,4.10649902,84.509,84.431,4.0767553]
[1770741344909,4.10649902,84.506,84.446,4.0767553]
[1770741345106,9.62342711,84.52,84.446,4.0767553]
[1770741345313,4.10649902,84.523,84.446,4.0767553]
[1770741345815,10.6548,84.519,84.472,10.6607]
[1770741346211,10.6548,84.519,84.471,4.0767553]
[1770741347717,10.6548,84.52,84.471,4.0767553]
[1770741348514,4.10649902,84.523,84.471,4.0767553]
[1770741349112,4.10649902,84.523,84.475,4.0767553]
[1770741349312,10.6544,84.522,84.475,4.0767553]
[1770741350416,4.10649902,84.523,84.477,4.05667376]
[1770741351011,3.89528196,84.521,84.462,4.05667376]
[1770741351516,3.89528196,84.521,84.446,94.46]
[1770741351517,3.89528196,84.539,84.49,10.6584]
[1770741351816,3.89528196,84.539,84.49,14.71507376]
[1770741352121,10.6515,84.545,84.491,4.05667376]
[1770741352922,14.54678196,84.545,84.491,4.05667376]
[1770741353824,14.54678196,84.545,84.498,10.6574]
[1770741354219,10.6519,84.543,84.498,10.6574]
[1770741354510,3.89528196,84.542,84.498,10.6574]
[1770741354722,3.89528196,84.539,84.461,4.05667376]
[1770741355627,10.6538,84.528,84.477,4.05667376]
[1770741356120,14.54908196,84.528,84.479,10.6597]
[1770741356319,14.54908196,84.528,84.477,4.05667376]
[1770741356515,10.6547,84.521,84.451,4.05667376]
[1770741356718,3.89528196,84.52,84.451,4.05667376]
[1770741357820,3.89528196,84.517,84.474,10.6604]
[1770741359129,3.89528196,84.514,84.466,10.6614]
[1770741359523,3.89528196,84.5,84.453,10.6631]
[1770741360624,3.89528196,84.496,84.435,4.05667376]
[1770741361023,3.89528196,84.51,84.45,4.05667376]
[1770741361727,3.89528196,84.55,84.478,4.05667376]
[1770741362320,3.89528196,84.548,84.496,10.6577]
[1770741362528,3.89528196,84.548,84.478,4.05667376]
[1770741363132,3.89528196,84.548,84.495,10.6577]
[1770741364727,3.89528196,84.547,84.495,10.6577]
[1770741365434,3.89528196,84.537,84.485,10.659]
[1770741365637,3.89528196,84.537,84.486,4.05667376]
[1770741366430,3.89528196,84.537,84.492,10.6581]
[1770741367129,3.89528196,84.527,84.462,4.05667376]
[1770741368138,10.6528,84.536,84.462,4.05667376]
[1770741368537,10.6543,84.524,84.474,4.05667376]
[1770741368933,3.89528196,84.535,84.474,4.05667376]
[1770741369640,10.6541,84.525,84.481,10.6595]
[1770741370041,10.6541,84.525,84.482,4.05667376]
[1770741371742,10.655,84.518,84.482,4.05667376]
[1770741372132,10.655,84.518,84.474,10.6605]
[1770741372133,10.656,84.51,84.467,4.05667376]
[1770741372333,104.06342711,84.55,84.467,4.05667376]
[1770741372334,3.89528196,84.547,84.467,4.05667376]
[1770741373038,10.654,84.526,84.484,14.71587376]
[1770741373440,10.6563,84.508,84.46,4.05667376]
[1770741373644,3.89528196,84.515,84.46,4.05667376]
[1770741374743,14.55058196,84.515,84.472,10.6606]
[1770741375946,10.6543,84.523,84.48,10.6597]
[1770741377036,10.6532,84.53,84.486,4.05667376]
[1770741377238,3.89528196,84.547,84.486,4.05667376]
[1770741378246,3.89528196,84.546,84.486,4.05667376]
[1770741378845,10.6526,84.535,84.493,10.6577]
[1770741379251,10.6526,84.535,84.493,14.71437376]
[1770741379446,10.6514,84.544,84.5,10.6568]
[1770741380150,4.05537545,84.54,84.5,10.6568]
[1770741380747,14.70837545,84.532,84.49,10.6581]
[1770741381845,4.05537545,84.532,84.496,10.6574]
[1770741382047,3.70570711,84.548,84.496,3.85597564]
[1770741382656,14.35660711,84.548,84.505,10.6562]
[1770741382851,3.70570711,84.547,84.505,10.6562]
[1770741383051,3.70570711,84.547,84.496,3.85597564]
[1770741383854,3.70570711,84.545,84.498,10.6571]
[1770741384149,3.70570711,84.545,84.496,3.85597564]
[1770741384150,3.70570711,84.545,84.478,3.85597564]
[1770741384350,3.70570711,84.544,84.478,3.85597564]
[1770741384747,10.6536,84.527,84.486,10.6586]
[1770741385550,10.6536,84.527,84.488,10.6584]
[1770741387660,10.6536,84.527,84.488,14.51437564]
[1770741388160,3.70570711,84.544,84.491,3.85597564]
[1770741388966,10.6524,84.536,84.497,10.6572]
[1770741390261,3.70570711,84.56,84.505,3.85597564]
[1770741390460,3.70570711,84.574,84.505,3.85597564]
[1770741390767,3.70570711,84.558,84.484,3.85597564]
[1770741391266,3.70570711,84.558,84.491,3.85597564]
[1770741392163,3.70570711,84.558,84.516,3.85597564]
[1770741392558,3.70570711,84.573,84.516,3.85597564]
[1770741393860,10.6484,84.568,84.525,10.6537]
[1770741394063,3.70570711,84.573,84.526,3.85597564]
[1770741394368,10.6479,84.572,84.532,10.6528]
[1770741395368,94.42,84.587,84.54,14.50787564]
[1770741395567,3.70570711,84.592,84.54,14.50787564]
[1770741395868,3.70570711,84.592,84.541,3.85597564]
[1770741396076,3.70570711,84.606,84.556,3.85597564]
[1770741396568,3.70570711,84.605,84.556,3.85597564]
[1770741396967,3.70570711,84.605,84.547,10.6512]
[1770741397767,3.70570711,84.589,84.531,10.6533]
[1770741398074,3.70570711,84.589,84.523,3.85597564]
[1770741398272,9.60135096,84.59,84.523,3.85597564]
[1770741398273,10.6491,84.564,84.523,3.85597564]
[1770741398472,10.6491,84.564,84.517,10.655]
[1770741398662,3.70570711,84.567,84.517,10.655]
[1770741398863,3.70570711,84.583,84.524,3.85597564]
[1770741399768,3.70570711,84.597,84.54,3.85597564]
[1770741400778,3.70570711,84.595,84.55,10.6508]
[1770741402879,3.58070813,84.59,84.542,10.6518]
[1770741403070,3.58070813,84.59,84.543,3.85597564]
[1770741404176,3.58070813,84.59,84.531,3.85597564]
[1770741404679,10.646,84.589,84.543,10.6517]
[1770741405770,3.58070813,84.57,84.531,3.85597564]
[1770741406173,94.38,84.606,84.499,94.4]
[1770741406174,3.58070813,84.59,84.541,3.85597564]
[1770741406767,7.28641524,84.59,84.541,3.85597564]
[1770741407079,3.70570711,84.589,84.541,3.85597564]
[1770741407672,3.70570711,84.589,84.549,10.6509]
[1770741409176,3.58070813,84.58,84.549,10.6509]
[1770741409378,3.70570711,84.569,84.525,3.85597564]
[1770741410877,3.58070813,84.57,84.539,10.6522]
[1770741411077,3.58070813,84.58,84.539,10.6522]
[1770741411278,3.78926978,84.578,84.531,10.6532]
[1770741411477,3.78926978,84.569,84.525,3.85597564]
[1770741411679,3.58070813,84.56,84.525,3.85597564]
[1770741411975,3.58070813,84.54,84.491,4.07209673]
[1770741412171,3.58070813,84.55,84.501,4.07209673]
[1770741413774,3.58070813,84.55,84.514,10.6553]
[1770741414377,3.78926978,84.549,84.506,10.6563]
[1770741414571,3.58070813,84.54,84.506,10.6563]
[1770741414775,3.58070813,84.54,84.501,4.07209673]
[1770741414978,3.78926978,84.549,84.513,10.6555]
[1770741415979,3.78926978,84.577,84.52,3.58070813]
[1770741416172,3.58070813,84.59,84.531,4.07209673]
[1770741416374,7.36997791,84.59,84.531,4.07209673]
[1770741416579,7.36997791,84.59,84.541,4.07209673]
[1770741417069,7.36997791,84.59,84.54,3.58070813]
[1770741417070,10.646,84.589,84.543,4.07209673]
[1770741417875,3.58070813,84.57,84.507,4.07209673]
[1770741418183,3.78926978,84.579,84.521,4.07209673]
[1770741418386,3.78926978,84.579,84.53,3.58070813]
[1770741418577,3.78926978,84.579,84.531,4.07209673]
[1770741418883,3.78926978,84.579,84.539,10.6523]
[1770741419888,3.58070813,84.58,84.543,10.6517]
[1770741420194,10.6461,84.589,84.544,4.07209673]
[1770741421289,3.58070813,84.57,84.535,10.6527]
[1770741421699,3.58070813,84.6,84.551,4.07209673]
[1770741421899,7.36809856,84.61,84.572,10.648]
[1770741423190,7.36809856,84.61,84.565,4.07209673]
[1770741423393,32.25817248,84.662,84.551,4.07209673]
[1770741423394,3.57882878,84.6,84.551,4.07209673]
[1770741423998,3.57882878,84.6,84.565,10.649]
[1770741424400,3.57882878,84.6,84.551,4.07209673]
[1770741424597,3.57882878,84.59,84.556,10.65]
[1770741424996,3.78926978,84.599,84.556,10.65]
[1770741425300,446.0,84.665,84.562,4.07209673]
[1770741425301,3.57882878,84.61,84.562,4.07209673]
[1770741426197,3.78926978,84.636,84.531,4.07209673]
[1770741426397,3.57882878,84.59,84.541,4.07209673]
[1770741426693,3.57882878,84.59,84.553,10.6505]
[1770741427289,14.22352878,84.6,84.555,14.72229673]
[1770741427596,3.78926978,84.599,84.555,4.07209673]
[1770741427796,3.57882878,84.59,84.555,4.07209673]
[1770741427998,3.57882878,84.59,84.541,4.07209673]
[1770741428697,3.57882878,84.59,84.547,10.6512]
[1770741429699,3.57882878,84.59,84.554,10.6503]
[1770741429895,3.78926978,84.599,84.551,4.07209673]
[1770741430203,3.57882878,84.6,84.551,4.07209673]
[1770741430396,3.57882878,84.6,84.562,10.6494]
[1770741430592,3.78926978,84.609,84.562,14.72149673]
[1770741430994,3.78926978,84.609,84.567,10.6487]
[1770741433101,3.57882878,84.6,84.563,4.07209673]
[1770741433691,3.57882878,84.6,84.564,10.6491]
[1770741434092,3.78926978,84.607,84.565,4.07209673]
[1770741434696,3.57882878,84.6,84.568,10.6486]
[1770741437198,3.78926978,84.607,84.568,10.6486]
[1770741439006,10.6439,84.606,84.568,10.6486]
[1770741439405,3.78926978,84.607,84.568,10.6486]
[1770741439800,14.43296978,84.607,84.568,10.6486]
[1770741440700,11.00622898,84.632,84.526,3.77120487]
[1770741440701,3.98659362,84.606,84.526,3.77120487]
[1770741440905,3.98659362,84.579,84.526,3.77120487]
[1770741441207,3.98659362,84.579,84.531,3.77120487]
[1770741441502,3.57882878,84.59,84.547,10.6512]
[1770741441805,3.57882878,84.58,84.547,10.6512]
[1770741442404,3.57882878,84.58,84.538,10.6523]
[1770741442709,4.10322155,84.593,84.539,3.91704411]
[1770741442710,3.57882878,84.59,84.539,3.91704411]
[1770741442909,3.57882878,84.59,84.504,21.3134]
[1770741442910,3.57882878,84.59,84.541,3.91704411]
[1770741443109,4.10322155,84.593,84.541,3.91704411]
[1770741443310,94.36,84.628,84.509,3.91704411]
[1770741443311,4.10322155,84.569,84.509,3.91704411]
[1770741443505,3.57882878,84.57,84.521,3.91704411]
[1770741443811,3.57882878,84.57,84.528,14.57064411]
[1770741444015,3.57882878,84.57,84.528,3.91704411]
[1770741444500,3.57882878,84.58,84.528,3.91704411]
[1770741444697,4.10322155,84.579,84.528,3.91704411]
[1770741444911,3.58198503,84.57,84.528,3.91704411]
[1770741445309,3.58198503,84.57,84.531,10.6533]
[1770741445607,3.58198503,84.57,84.52,3.58198503]
[1770741445608,4.10322155,84.569,84.52,3.58198503]
[1770741445810,4.10322155,84.569,84.513,3.91704411]
[1770741446704,10.6487,84.568,84.523,10.6542]
[1770741446903,14.75192155,84.568,84.523,10.6542]
[1770741447104,3.58198503,84.56,84.523,10.6542]
[1770741448407,3.58198503,84.56,84.524,3.91704411]
[1770741450310,3.58198503,84.56,84.527,10.6538]
[1770741450905,14.75192155,84.568,84.527,10.6538]
[1770741452007,3.58198503,84.56,84.527,10.6538]
[1770741453611,4.10322155,84.558,84.51,3.91704411]
[1770741453913,3.58198503,84.55,84.51,3.91704411]
[1770741454110,4.10322155,84.558,84.51,3.91704411]
[1770741454613,4.10322155,84.558,84.517,3.91704411]
[1770741455302,10.6489,84.566,84.52,3.58198503]
[1770741455504,3.58198503,84.56,84.517,3.91704411]
[1770741455910,4.10322155,84.572,84.517,3.91704411]
[1770741455911,3.58198503,84.55,84.517,14.57204411]
[1770741456214,3.58198503,84.57,84.521,3.91704411]
[1770741457705,14.23038503,84.57,84.521,3.91704411]
[1770741458207,4.10322155,84.559,84.51,3.58198503]
[1770741458412,3.58198503,84.55,84.506,3.91704411]
[1770741458611,4.10322155,84.559,84.511,3.91704411]
[1770741459114,3.58198503,84.56,84.528,10.6536]